[Event "1st Chessable Sunway Formentera 2022"]
[Site "Formentera Punta Prima"]
[Date "2022.05.02"]
[Round "4"]
[White "Bergez, Luc"]
[Black "Chkhaidze, Nikoloz"]
[Result "1-0"]
[ECO "B40"]
[WhiteElo "2331"]
[BlackElo "2301"]
[Annotator "TA"]
[PlyCount "73"]
[EventDate "2022.05.05"]
[EventType "swiss"]
[EventCountry "ESP"]
[SourceTitle "playchess.com"]
[Source "ChessBase"]
[SourceQuality "1"]
[TimeControl "40/5400+30:1800+30"]

{[%evp 12,73,17,14,11,14,12,4,37,40,60,45,131,133,139,108,122,146,145,118,125,122,132,144,133,136,163,118,170,115,115,121,125,109,106,103,105,110,276,275,263,242,268,250,300,206,395,342,350,364,352,350,447,447,673,643,642,636,613,625,693,687,800,604]} 1. e4 {[%emt 0:00:04]} c5 {[%emt 0:00:01]} 2. Nf3 {[%emt 0:00:41]} e6 {[%emt 0:00:02]} 3. b3 {[%emt 0:01:24]} b6 {[%emt 0:00:08]} 4. Bb2 {[%emt 0:04:22]} Bb7 {[%emt 0:00:01]} 5. Nc3 {[%emt 0:00:55]} Nc6 {[%emt 0:00:13]} 6. d4 {[%emt 0:02:41]} cxd4 {[%emt 0:00:13]} 7. Nxd4 {[%emt 0:00:09]} a6 {[%emt 0:09:10] Inhibits Ndb5. B40: Sicilian: 2...e6, Unusual lines.} 8. Nxc6 {[%emt 0:00:56]} Bxc6 {[%emt 0:01:21]} 9. Bd3 {[%emt 0:00:41] [#]} b5 $146 {[%emt 0:02:59] The position is equal.} ({Predecessor:} 9... d6 10. Qe2 b5 11. a4 b4 12. Nd5 a5 13. Bb5 Ne7 14. Nxe7 Bxb5 15. Qxb5+ Kxe7 {1-0 (25) Tsydypov,Z (2553)-Papin,V (2481) Sochi 2019}) 10. Qe2 {[%emt 0:03:11]} Qa5 {[%emt 0:04:09]} 11. O-O {[%emt 0:06:40][%cal Oc3d5]} Ba3 {[%emt 0:03:16] [#]} (11... Nf6 $14) 12. Nxb5 $1 $16 {[%emt 0:02:19][%cal Bc3b5,Bb5d6,Bd6c4][%mdl 544]} Bxb2 {[%emt 0:17:04]} 13. Nd6+ {[%emt 0:00:12]} Ke7 {[%emt 0:00:28]} 14. Nc4 {[%emt 0:00:11][%csl LRa5,LRb2]} Qc3 {[%emt 0:03:08]} 15. Rab1 {[%emt 0:00:09]} Nf6 {[%emt 0:08:37]} 16. Nxb2 {[%emt 0:00:26]} d5 {[%emt 0:00:32] Against Nc4} 17. e5 {[%emt 0:08:51]} ({Reject} 17. Bxa6 $6 Nxe4 18. Nd1 Qd2 $11) 17... Nd7 {[%emt 0:03:48]} 18. f4 {[%emt 0:01:00]} ({Don't play} 18. Bxa6 Rhb8 $14) 18... g5 {[%emt 0:03:10]} 19. fxg5 {[%emt 0:03:16]} Qxe5 {[%emt 0:33:19]} (19... Rag8 $16) 20. Qxe5 {[%emt 0:13:36]} (20. Bxa6 $6 Qxe2 21. Bxe2 Rxa2 $11) (20. Qh5 $18) 20... Nxe5 {[%emt 0:00:25]} 21. Rbe1 {[%emt 0:00:05]} Nxd3 {[%emt 0:00:00]} 22. Nxd3 {[%emt 0:00:06]} ({Don't do} 22. cxd3 Rag8 $14) 22... Bb5 {[%emt 0:00:15]} 23. c4 {[%emt 0:02:32]} dxc4 {[%emt 0:07:52]} 24. Ne5 {[%emt 0:00:00][%csl LRc4,LRf7] White is more active.} cxb3 $2 {[%emt 0:00:00] This costs Black the game.} (24... Be8 $16 {was necessary.}) 25. Rxf7+ $18 {[%emt 0:00:05]} Kd6 {[%emt 0:00:20]} 26. axb3 {[%emt 0:00:00][%cal Ba2b3,Bb3b4][%mdl 32]} Kc5 27. h4 {[%emt 0:00:04][%cal Bh2h4,Bh4h5,Bh5h6,Bh6h7][%mdl 32]} Rad8 28. Rf4 {aiming for Nf7.} Rhf8 (28... Rd4 {is a better defense.} 29. Rxd4 Kxd4) 29. Nf7 Rde8 30. b4+ Kb6 31. Rf6 Bd7 32. h5 {White is clearly winning.} Rg8 (32... Re7 $142) 33. Re5 Rc8 34. g6 hxg6 35. h6 Rgf8 36. h7 Rce8 37. Rg5 {Weighted Error Value: White=0.08 (flawless) /Black=0.44} 1-0

[Event "1st Chessable Sunway Formentera 2022"]
[Site "Formentera Punta Prima"]
[Date "2022.05.02"]
[Round "4"]
[White "Garcia Martin, Marta"]
[Black "Park, Evan"]
[Result "1-0"]
[ECO "C55"]
[WhiteElo "2326"]
[BlackElo "2431"]
[Annotator "TA"]
[PlyCount "73"]
[EventDate "2022.05.05"]
[EventType "swiss"]
[EventCountry "ESP"]
[SourceTitle "playchess.com"]
[Source "ChessBase"]
[SourceQuality "1"]
[TimeControl "40/5400+30:1800+30"]

{[%evp 10,73,38,34,27,21,33,22,22,25,32,18,32,37,22,29,45,29,56,0,0,11,13,0,12,22,41,11,14,15,55,44,313,195,229,212,253,255,239,161,175,165,168,159,155,104,195,193,172,184,293,286,302,286,310,284,281,247,543,528,518,514,596,480,1708,1682]} 1. e4 {[%emt 0:08:29]} e5 {[%emt 0:00:02]} 2. Nf3 {[%emt 0:00:20]} Nc6 {[%emt 0:00:01]} 3. Bc4 {[%emt 0:00:08]} Nf6 {[%emt 0:00:03]} 4. d3 {[%emt 0:00:09]} h6 {[%emt 0:00:02]} 5. O-O {[%emt 0:00:20]} d6 {[%emt 0:00:07]} 6. a4 {[%emt 0:00:22]} g5 {[%emt 0:01:50] C55: Two Knights: 4 d3, 4 d4 exd4 5 e5 and Max Lange Attack.} 7. Nc3 {[%emt 0:00:32]} Bg7 {[%emt 0:00:39]} 8. a5 {[%emt 0:00:58]} a6 {[%emt 0:01:54] The position is equal.} 9. d4 {[%emt 0:13:28]} Bg4 {[%emt 0:07:47]} 10. dxe5 {[%emt 0:03:05]} Nxe5 {[%emt 0:00:55]} 11. Be2 {[%emt 0:00:49]} Bxf3 {[%emt 0:01:21]} 12. Bxf3 {[%emt 0:02:47] [#]} O-O $146 {[%emt 0:02:59]} ({Predecessor:} 12... Nxf3+ 13. Qxf3 Qe7 14. e5 dxe5 15. Qxb7 O-O 16. Re1 Qd6 17. Ne4 Nxe4 18. Qxe4 Rab8 {1-0 (56) Levitan,R (2068)-Janzelj,L (2150) Terme Catez 2021}) 13. Be2 {[%emt 0:10:34]} Re8 {[%emt 0:08:25]} 14. Re1 {[%emt 0:05:46]} Qd7 {[%emt 0:03:35]} 15. Be3 {[%emt 0:10:23]} Rad8 {[%emt 0:08:54]} 16. Ra4 {[%emt 0:07:06]} Nc6 {[%emt 0:23:14]} 17. h4 {[%emt 0:08:31]} Re5 {[%emt 0:04:45]} 18. hxg5 {[%emt 0:08:19]} (18. Qd2 $5 {[%cal Rh4g5]}) 18... hxg5 {[%emt 0:00:07]} 19. Qd2 {[%emt 0:00:03]} g4 {[%emt 0:03:21]} 20. Bg5 {[%emt 0:02:53]} Rc5 $2 {[%emt 0:09:47][%mdl 8192]} (20... Ne7 $14) 21. Bxf6 {[%emt 0:10:58]} Bxf6 {[%emt 0:00:16]} 22. Nd5 {[%emt 0:00:05]} Be7 {[%emt 0:05:13]} 23. b4 {[%emt 0:01:46]} Rxd5 {[%emt 0:00:01]} 24. Qxd5 {[%emt 0:02:02] Ra3 is the strong threat.} Ne5 {[%emt 0:00:04]} 25. Raa1 {[%emt 0:01:19]} Kg7 {[%emt 0:02:38]} 26. g3 $1 {[%emt 0:00:37]} ({Weaker is} 26. Qxb7 Qe6 27. Ra3 (27. Bxa6 Qh6 $11) (27. Qxa6 $2 Rh8 $19) 27... Rh8 28. Bxg4 (28. Qxa6 $2 Qh6 $19) 28... Nxg4 $14) 26... c6 {[%emt 0:00:33]} 27. Qb3 {[%emt 0:00:03]} ({White should try} 27. Qd4) 27... f5 {[%emt 0:02:50]} (27... Bg5 $16 {keeps fighting.}) 28. Qe3 $1 $18 {[%emt 0:01:16]} Bf6 {[%emt 0:01:47]} 29. Rad1 {[%emt 0:00:56]} Qf7 {[%emt 0:03:02] [#]} (29... d5 $142 30. exd5 cxd5) 30. Kg2 $1 {[%emt 0:00:20]} ({And not} 30. exf5 Qh5 31. Qb6 Rh8 32. Qxb7+ Kf8 33. Qc8+ Kg7 34. Qc7+ Kg8 35. Qb8+ Kg7 36. Qc7+ Kg8 37. Qc8+ Kg7 38. Qc7+ $11) 30... Qg6 {[%emt 0:00:05] [#]} 31. exf5 {[%emt 0:00:53]} Qxf5 {[%emt 0:00:02]} 32. Rh1 {[%emt 0:00:37]} Bg5 {[%emt 0:00:02]} 33. Qd4 {[%emt 0:00:18] Black must now prevent Rh5.} c5 $2 {[%emt 0:01:58]} (33... Kg6 34. Rde1 Bf6) 34. bxc5 {[%emt 0:00:28] White is clearly winning.} dxc5 {[%emt 0:00:01] [#]} 35. Bxg4 $1 {[%emt 0:00:31][%mdl 512] aiming for Rh7+.} Qf6 {[%emt 0:01:35]} (35... Rxd4 36. Bxf5) 36. Qxd8 {[%emt 0:00:45]} Qc6+ {[%emt 0:00:34]} (36... Qxd8 $142 37. Rxd8 Bxd8) 37. Qd5 {[%emt 0:00:04] Weighted Error Value: White=0.15 (very precise) /Black=0.44} 1-0

[Event "1st Chessable Sunway Formentera 2022"]
[Site "Formentera Punta Prima"]
[Date "2022.05.02"]
[Round "4"]
[White "Mouhamad, Joachim"]
[Black "Cuenca Jimenez, Jose Fernando"]
[Result "0-1"]
[ECO "B32"]
[WhiteElo "2290"]
[BlackElo "2551"]
[Annotator "TA"]
[PlyCount "84"]
[EventDate "2022.05.05"]
[EventType "swiss"]
[EventCountry "ESP"]
[SourceTitle "playchess.com"]
[Source "ChessBase"]
[SourceQuality "1"]
[TimeControl "40/5400+30:1800+30"]

{[%evp 14,84,34,25,26,32,28,27,27,25,26,31,31,-14,-25,-30,-17,-27,-19,-18,-30,-41,-38,-86,-18,-17,-16,-17,0,-11,14,11,9,14,47,-35,-36,-38,-18,-33,1,-116,-80,-177,-147,-311,-262,-258,-247,-648,-202,-181,-174,-147,-114,-184,-154,-556,-543,-539,-521,-487,-290,-641,-433,-425,-440,-630,-645,-667,-658,-652,-651]} 1. e4 {[%emt 0:00:06]} c5 {[%emt 0:01:16]} 2. Nf3 {[%emt 0:00:23]} Nc6 {[%emt 0:00:39]} 3. d4 {[%emt 0:00:23]} cxd4 {[%emt 0:00:06]} 4. Nxd4 {[%emt 0:00:07]} e5 {[%emt 0:00:02]} 5. Nb5 {[%emt 0:00:11]} d6 {[%emt 0:00:06]} 6. N1c3 {[%emt 0:00:36]} a6 {[%emt 0:00:19]} 7. Na3 {[%emt 0:00:09]} Be7 {[%emt 0:00:04]} 8. Nc4 {[%emt 0:03:55]} b5 {[%emt 0:00:29] B32: Sicilian: Löwenthal and Kalashnikov Variations.} 9. Ne3 {[%emt 0:00:16]} Nf6 {[%emt 0:00:05]} 10. Bd3 {[%emt 0:04:23]} O-O {[%emt 0:00:31] White has an edge.} 11. O-O {[%emt 0:02:02]} Nb4 {[%emt 0:00:05]} 12. Be2 {[%emt 0:07:48]} Be6 {[%emt 0:00:03]} 13. Ncd5 {[%emt 0:05:16]} Nbxd5 {[%emt 0:03:26]} 14. exd5 {[%emt 0:00:22]} Bd7 {[%emt 0:18:03] [#]} 15. c4 $146 {[%emt 0:03:17][%cal Oc4c5]} ({Predecessor:} 15. f4 Ne4 16. Bf3 exf4 17. Bxe4 fxe3 18. Bxe3 Bf6 19. Bd4 Bxd4+ 20. Qxd4 Rc8 21. Bd3 {½-½ (61) Fluvia Poyatos,J (2473)-Munoz Pantoja,M (2479) Catalunya 2013}) 15... Qb6 {[%emt 0:04:59]} 16. cxb5 {[%emt 0:37:07]} axb5 {[%emt 0:01:25]} 17. Qd3 {[%emt 0:02:27]} g6 {[%emt 0:06:07]} 18. b3 {[%emt 0:04:39]} (18. a3 $15) 18... Ne8 {[%emt 0:08:00]} (18... Rfc8 $17 {Hoping for ...Qd4.} 19. Bb2 Ne8) 19. Nc2 $11 {[%emt 0:02:49] Against Qd4} f5 {[%emt 0:04:08]} 20. Be3 {[%emt 0:00:28]} Qb7 {[%emt 0:01:26]} 21. Nb4 {[%emt 0:01:53][%cal Ob4c6]} Nc7 {[%emt 0:07:07]} 22. f4 {[%emt 0:01:55]} Bf6 {[%emt 0:04:15]} 23. Rac1 {[%emt 0:00:32]} Rfe8 {[%emt 0:01:39]} (23... exf4 {is more complex.} 24. Bxf4 Na6 25. Nc6 Nc5) 24. Rfd1 {[%emt 0:00:06]} ({Better is} 24. fxe5 $14 Bxe5 25. Kh1) 24... exf4 $15 {[%emt 0:03:17]} 25. Bxf4 {[%emt 0:01:14]} Qb6+ {[%emt 0:01:27]} 26. Kf1 {[%emt 0:03:38]} Re4 {[%emt 0:00:30]} (26... Bh4 27. Qd4 Qxd4 28. Rxd4 $16) 27. Bd2 {[%emt 0:00:16]} (27. Qd2 $1 $11 {was the only way to keep the balance.}) 27... Be5 $17 {[%emt 0:02:13] 0x0.002ddf90e647dp-1022s more active pieces.} (27... Bh4 28. g3 f4 29. Kg2 (29. gxh4 Rae8 $19)) 28. Qh3 {[%emt 0:00:05]} (28. Be1 $17 {was called for.}) 28... Bf4 $40 {[%emt 0:00:05][%mdl 128] Black attacks with force.} 29. Nd3 $2 {[%emt 0:00:05]} (29. Qc3 $17 {was necessary.} Na6 30. Nxa6 Bxh2 31. Nc5 dxc5 32. Qxc5 Qxc5 33. Rxc5) 29... Bxd2 {[%emt 0:00:30]} ({Weaker is} 29... Rxa2 30. Nxf4 (30. Rxc7 $2 Qxc7 31. Nxf4 Rxd2 $19) 30... Rxd2 31. Rxd2 $17) 30. Rxd2 {[%emt 0:00:30]} Nxd5 {[%emt 0:00:30]} 31. Nc5 $2 {[%emt 0:00:25]} (31. Nf2 Rd4 32. Rxd4 Qxd4 33. Qd3 Qxd3 34. Nxd3) 31... dxc5 $2 {[%emt 0:00:30]} (31... Ne3+ 32. Kf2 {[#]} Rae8 $1) 32. Rxd5 $19 {[%emt 0:00:05]} Qe6 {[%emt 0:30:26]} 33. Rd2 {[%emt 0:16:48]} Bc6 {[%emt 0:00:30] [#] aiming for ...Re8.} 34. Qg3 {[%emt 0:00:21]} (34. Bf3 $17 Re5 35. Bxc6 Qxc6 36. Rcd1) 34... f4 35. Qg5 {[%emt 0:00:21]} (35. Qf2 $17 {is tougher.}) 35... Re8 {[%emt 0:03:01][%cal Re4e2]} 36. Rcc2 {[%emt 0:02:45]} Re5 {[%emt 0:00:10]} 37. Qh4 {[%emt 0:00:19]} Re3 {[%emt 0:00:41]} (37... Qf5 $142 38. Qh3 f3 39. Qxf5 fxe2+ 40. Rxe2 Rxf5+ 41. Rf2 Rfe5) 38. Qf2 {[%emt 0:00:43]} (38. Kg1) 38... Qe5 {[%emt 0:00:13] ...Qf5 is the strong threat. Black is clearly winning.} 39. Kg1 {[%emt 0:00:10]} Qg5 {[%emt 0:00:43]} 40. Bf1 {[%emt 0:00:00]} (40. h4 $142 Qe5 41. a4) 40... f3 {[%emt 0:00:00] Threatens to win with ...fxg2.} 41. g3 {[%emt 0:03:02]} Qe5 {[%emt 0:06:45] Against Rd6} 42. Rc1 {[%emt 0:01:24]} Qe4 {[%emt 0:03:56] Weighted Error Value: White=0.65/Black=0.32} 0-1

[Event "1st Chessable Sunway Formentera 2022"]
[Site "Formentera Punta Prima"]
[Date "2022.05.02"]
[Round "4"]
[White "Soham Das"]
[Black "Bernard, Jacques"]
[Result "1-0"]
[ECO "D02"]
[WhiteElo "2266"]
[BlackElo "2122"]
[Annotator "TA"]
[PlyCount "57"]
[EventDate "2022.05.05"]
[EventType "swiss"]
[EventCountry "ESP"]
[SourceTitle "playchess.com"]
[Source "ChessBase"]
[SourceQuality "1"]
[TimeControl "40/5400+30:1800+30"]

{[%evp 11,57,0,-2,-7,0,0,18,4,17,4,14,13,14,3,13,5,8,8,23,14,10,8,25,27,45,55,58,54,59,65,52,51,54,58,63,50,39,15,66,64,252,235,800,817,1352,1337,1246,1229]} 1. d4 {[%emt 1:13:11]} d5 {[%emt 1:30:41]} 2. Nc3 {[%emt 0:18:14]} Nf6 {[%emt 0:00:00]} 3. Bf4 {[%emt 0:00:29]} e6 {[%emt 0:00:00]} 4. e3 {[%emt 0:00:00]} a6 {[%emt 0:00:00]} 5. Nf3 {[%emt 0:00:00]} c5 {[%emt 0:01:02]} 6. Be2 {[%emt 0:00:00]} Nc6 {[%emt 0:00:09]} 7. O-O {[%emt 0:00:00] D02: 1 d4 d5 2 Nf3 sidelines, including 2...Nf6 3 g3 and 2...Nf6 3 Bf4.} Bd6 {[%emt 0:00:00]} 8. Bxd6 {[%emt 0:00:00]} Qxd6 {[%emt 0:02:25]} 9. Na4 {[%emt 0:02:49][%cal Bc3a4,Ba4c5,Bc5d3,Bd3e5][%mdl 32] The position is equal.} cxd4 {[%emt 0:00:00]} 10. exd4 {[%emt 0:00:00]} O-O {[%emt 0:00:00] [#]} 11. Nc5 $146 {[%emt 0:00:00]} ({Predecessor:} 11. c3 Ne4 12. Nd2 f5 13. f3 Nf6 14. Nb3 Bd7 15. Nac5 Qc7 16. Re1 Rae8 17. Bf1 {0-1 (66) Gorozhanin,M (2435)-Tari,A (2599) Chess.com INT 2018}) 11... b6 {[%emt 0:00:00]} 12. Nd3 {[%emt 0:01:25]} a5 {[%emt 0:01:49]} 13. a4 {[%emt 0:00:00]} Ba6 14. c3 {[%emt 0:00:00]} Bc4 15. Re1 {[%cal Bf1e1,Be1c1,Bc1c6][%mdl 32]} b5 (15... Rfb8 {seems wilder.} 16. Nde5 b5 17. Ng5 Nxe5 18. dxe5 Qxe5 19. Nxf7 Qc7) 16. Nde5 Bxe2 (16... Rfb8 {looks sharper.} 17. Ng5 Nxe5 18. dxe5 Qxe5 19. Nxf7 Qc7) 17. Qxe2 b4 18. Nxc6 Qxc6 19. cxb4 axb4 20. Rec1 Qb6 21. Qb5 Qxb5 22. axb5 {[%cal Ba4b5,Bb5b6,Bb6a7][%mdl 32] [#] Black must now prevent Rxa8.} Rab8 23. Ra5 Ne4 24. Ne5 {Strongly threatening Nd7.} Rb7 {Prevents Nd7.} (24... Nd2 $1 $11 25. Rc7 Nb3) 25. Rc6 $36 {[%mdl 2048] Hoping for b6. White has some pressure.} Nd2 $2 {Loses the game.} ({Better is} 25... Rfb8 $1 $14) 26. b6 $18 {[#] Threatens to win with Ra7.} Nb3 $2 (26... Nc4 27. Nxc4 dxc4) 27. Ra7 {White is clearly winning.} Rxa7 28. bxa7 Nxd4 29. Rb6 {Weighted Error Value: White=0.03 (flawless) /Black=0.33} 1-0

[Event "1st Chessable Sunway Formentera 2022"]
[Site "Formentera Punta Prima"]
[Date "2022.05.02"]
[Round "4"]
[White "Real, Thibault"]
[Black "Vrolijk, Liam"]
[Result "0-1"]
[ECO "B51"]
[WhiteElo "2262"]
[BlackElo "2467"]
[Annotator "TA"]
[PlyCount "74"]
[EventDate "2022.05.05"]
[EventType "swiss"]
[EventCountry "ESP"]
[SourceTitle "playchess.com"]
[Source "ChessBase"]
[SourceQuality "1"]
[TimeControl "40/5400+30:1800+30"]

{[%evp 13,74,14,22,0,29,33,41,23,24,13,34,35,20,7,21,0,10,14,12,7,22,29,15,28,22,0,0,0,0,0,11,-69,-49,-77,-79,-79,0,0,0,-39,118,-206,-207,-200,-99,-223,-200,-972,-960,-858,-790,-1365,-1167,-1373,-1310,-5831,-4518,-6006,-5808,-29989,-29990,-29992,-29993]} 1. e4 {[%emt 0:00:16]} c5 {[%emt 0:07:06]} 2. Nf3 {[%emt 0:00:06]} d6 {[%emt 0:00:25]} 3. Bb5+ {[%emt 0:00:06]} Nd7 {[%emt 0:00:52]} 4. c3 {[%emt 0:00:22]} Ngf6 {[%emt 0:02:24]} 5. Qe2 {[%emt 0:00:10]} a6 {[%emt 0:00:33]} 6. Ba4 {[%emt 0:00:06]} b5 {[%emt 0:02:31]} 7. Bc2 {[%emt 0:00:03]} e5 {[%emt 0:02:43]} 8. a4 {[%emt 0:01:46] B51: Sicilian: Moscow Variation (3 Bb5+) without 3...Bd7.} Rb8 {[%emt 0:02:02]} 9. d4 {[%emt 0:02:17]} Be7 {[%emt 0:02:02]} 10. O-O {[%emt 0:00:46] White is slightly better.} O-O {[%emt 0:00:34]} 11. Na3 {[%emt 0:07:54]} Qb6 {[%emt 0:03:19][%cal Re5d4]} 12. Rd1 {[%emt 0:09:13]} Re8 {[%emt 0:01:19] [#]} 13. h3 $146 {[%emt 0:42:37]} ({Predecessor:} 13. b3 exd4 14. cxd4 cxd4 15. axb5 axb5 16. Nxd4 d5 17. Naxb5 Ba6 18. Bd3 Nc5 19. Rxa6 Nxa6 {0-1 (32) Cisler,P (2181)-Vavruska,D (2227) Czech Republic 2017}) 13... Bf8 {[%emt 0:12:11]} 14. dxe5 {[%emt 0:05:31]} dxe5 15. Be3 {[%emt 0:04:59]} Qc6 {[%csl LRa4,LRe4]} 16. axb5 {[%emt 0:01:07]} axb5 17. c4 {[%emt 0:04:31][%cal Rc4b5]} b4 18. Nb5 {[%emt 0:00:25]} Bb7 19. Nd2 {[%emt 0:05:55]} Ra8 20. Rxa8 {[%emt 0:08:01]} Rxa8 21. Nf3 {[%emt 0:03:01][%cal Bd2f3,Bf3h4,Bh4f5][%mdl 32]} Be7 22. g4 {[%emt 0:00:00]} (22. Bg5 $11) 22... h5 $15 23. gxh5 {[%emt 0:00:00]} (23. g5 Nxe4 24. Rd5 (24. Bxe4 $2 Qxe4 25. Rxd7 Qxf3 $19) 24... Nd6 25. Nxd6 Ra1+ 26. Kg2 Bxd6) 23... Nxh5 24. Nh4 {[%emt 0:00:00]} Nhf6 ({Black should play} 24... Nf4 $17 25. Bxf4 exf4) 25. Nf5 $11 {[%emt 0:00:00]} Bf8 26. f3 {[%emt 0:00:06]} Nb6 $2 {[#]} (26... Ne8 $15 {stays ahead.}) 27. Qg2 $2 {[%emt 0:00:00][%mdl 8192]} (27. Rd6 $1 $16 {[%cal Rd6c6][%mdl 512] is forced if you want to stay better.} Bxd6 28. Nbxd6) 27... Nxc4 $19 28. Bh6 {[%emt 0:00:00]} Nh5 (28... Ne8 $19 {has better winning chances.} 29. Nbd6 Ncxd6 30. Rxd6 Qc7) 29. Bxg7 {[%emt 0:00:05]} Nxg7 30. Rd6 $2 {[%emt 0:00:00]} (30. Bb3 Qxb5 31. Qg5) 30... Nxd6 31. Nbxd6 {[%emt 0:00:00]} Bc8 32. Nh6+ {[%emt 0:01:06]} Kh7 33. Nhf5 {[%emt 0:00:00]} Bxf5 34. exf5 {[%emt 0:00:05]} Qxd6 35. f6+ {[%emt 0:00:00]} Kg8 {( -> ...Ra1+)} 36. Qg5 {[%emt 0:00:00]} Qd4+ 37. Kg2 {[%emt 0:00:00] [#]} Ra1 $1 {Weighted Error Value: White=1.21/Black=0.38} 0-1

[Event "1st Chessable Sunway Formentera 2022"]
[Site "Formentera Punta Prima"]
[Date "2022.05.02"]
[Round "4"]
[White "Neiman, Emmanuel"]
[Black "Alinasab, Mobina"]
[Result "1/2-1/2"]
[ECO "C00"]
[WhiteElo "2248"]
[BlackElo "2373"]
[Annotator "TA"]
[PlyCount "96"]
[EventDate "2022.05.05"]
[EventType "swiss"]
[EventCountry "ESP"]
[SourceTitle "playchess.com"]
[Source "ChessBase"]
[SourceQuality "1"]
[TimeControl "40/5400+30:1800+30"]

{[%evp 19,96,-14,73,6,0,0,4,0,0,3,8,8,57,45,38,25,53,52,58,49,52,59,43,52,71,72,108,100,100,102,200,111,102,104,75,78,105,68,68,68,69,72,58,0,137,139,143,142,147,143,155,152,150,0,0,0,114,108,93,30,32,27,43,50,47,0,0,0,8,23,37,0,0,0,40,0,0,0,34]} 1. g3 {[%emt 1:30:43]} Nf6 {[%emt 1:29:49]} 2. Bg2 {[%emt 0:00:39]} e6 {[%emt 0:01:35]} 3. Nf3 {[%emt 0:00:08]} d5 {[%emt 0:00:00]} 4. O-O {[%emt 0:00:52]} c5 {[%emt 0:00:00]} 5. d3 {[%emt 0:00:11]} Nc6 {[%emt 0:00:48]} 6. Nbd2 {[%emt 0:00:50]} b6 {[%emt 0:00:25]} 7. e4 {[%emt 0:00:13]} Bb7 {[%emt 0:00:53]} 8. Re1 {[%emt 0:00:33]} Qc7 {[%emt 0:00:00]} 9. c3 {[%emt 0:00:00]} Be7 {[%emt 0:00:35]} 10. a3 {[%emt 0:00:45]} O-O-O {[%emt 0:00:00]} (10... dxe4 $11 11. dxe4 e5) 11. e5 {[%emt 0:00:00] C00: French: Unusual White 2nd moves.} (11. exd5 $16 Nxd5 12. Nc4) 11... Nd7 $1 $11 {[%emt 0:01:36]} 12. d4 {[%emt 0:00:00]} g5 {[%emt 0:00:06]} 13. Nf1 {[%emt 0:00:00]} Rdg8 {[%emt 0:00:00]} 14. Be3 {[%emt 0:00:00] [#]} c4 $146 {[%emt 0:00:00]} (14... h5 {is more complex.} 15. b4 h4 16. g4 h3) ({Predecessor:} 14... Kb8 15. b4 c4 16. a4 h5 17. b5 Na5 18. h3 g4 19. N3h2 gxh3 20. Bxh3 h4 21. g4 f5 22. f4 Nf8 23. g5 Ng6 24. Nf3 Rh7 {½-½ (24) Romanov,A-Melnikov,S Bulgaria 2000}) 15. N3d2 {[%emt 0:00:00]} Na5 {[%emt 0:00:00]} (15... Kb8 $11) 16. Qh5 {[%emt 0:00:00]} Rg7 {[%emt 0:01:53]} 17. f4 {[%emt 0:00:00][%cal Rf4g5]} gxf4 {[%emt 0:00:00]} 18. Bxf4 {[%emt 0:04:06]} Qd8 {[%emt 0:00:00]} 19. Ne3 {[%cal Bf1e3,Be3g4,Bg4f6][%mdl 32]} h6 {[%emt 0:00:00]} 20. Re2 (20. Bxh6 $2 Rg6 21. Qf3 Rgxh6 $19) 20... Nf8 {[%emt 0:00:00]} 21. Ng4 (21. Bxh6 $2 Rg5 $1 22. Qxf7 Rxh6 $19) 21... Ng6 {[%emt 0:00:00]} 22. Be3 (22. Bxh6 Rgh7 $11) 22... Bg5 {[%emt 0:00:28]} 23. Rf1 Ne7 {[%emt 0:00:00]} 24. Nf6 (24. Rxf7 $6 Qe8 25. Ref2 Nf5 26. Bxg5 (26. R2xf5 exf5 27. Bxg5 Rxg5 $11) 26... hxg5 27. R2xf5 Rxh5 $14) 24... Nf5 {[%emt 0:03:29] [#]} (24... Rg6 $16 {keeps fighting.}) 25. Bf4 ({But not} 25. Bxg5 $6 hxg5 26. Qf3 Bc6 $16) (25. Rxf5 $1 $18 {[%mdl 512]} exf5 26. Qh3) 25... Nc6 {[%emt 0:00:00]} 26. Bxg5 hxg5 {[%emt 0:01:40]} 27. Qf3 Kb8 {[%emt 0:00:00]} 28. h3 Nce7 {[%emt 0:00:00]} 29. Qf2 Ng8 {[%emt 0:00:00]} 30. g4 Nh4 {[%emt 0:01:37]} 31. Qe3 (31. Qg3 $14) 31... Ne7 {[%emt 0:00:00] [#]} (31... Nxf6 $11 32. Rxf6 Nxg2 33. Rxg2 Qg8) 32. Nf3 $1 $16 {White is more active.} Nxf3+ {[%emt 0:00:00]} 33. Rxf3 (33. Qxf3 Nc6 $16) 33... Bc6 {[%emt 0:01:00]} 34. Nh5 Rxh5 {[%emt 0:00:00]} 35. gxh5 {aiming for h6.} Qh8 {[%emt 0:01:48]} 36. h6 (36. Rf1 $16) 36... Qxh6 $11 {[%emt 0:00:27]} 37. h4 Qxh4 {[%emt 0:00:00]} (37... Nf5 $11 {keeps the balance.} 38. hxg5 Qh5 39. Rxf5 exf5) 38. Rh3 $16 Qg4 {[%emt 0:00:37] [#]} 39. Rh8+ ({Don't do} 39. Qf3 Qf5 $11) (39. Rf2 $1 $16) 39... Kb7 {[%emt 0:00:58]} 40. Qf3 {The board is on fire.} Qxf3 {[%emt 0:00:01]} 41. Bxf3 {Strongly threatening Bh5.} Ng6 $1 {[%emt 0:31:06]} ({Weaker is} 41... g4 42. Rg2 $16) 42. Rh6 (42. Rh1 $1 $14) 42... g4 $1 $11 {[%emt 0:00:00]} 43. Bg2 (43. Bxg4 $2 Nf4 44. Kf2 Rxg4 $17) 43... Nf4 {[%emt 0:00:00]} 44. Rd2 Ba4 {[%emt 0:00:00]} 45. Rf6 {[%mdl 1024] White has compensation.} Nh5 {[%emt 0:01:27]} 46. Rh6 Nf4 {[%emt 0:01:02]} 47. Rf6 Nh5 {[%emt 0:00:00]} 48. Rh6 Nf4 {[%emt 0:00:00] Weighted Error Value: White=0.18 (very precise) /Black=0.21 (precise)} 1/2-1/2